fUSD/lending_fUSD_20251002
["ID","MTS","AMOUNT","RATE_DAILY","PERIOD"]
[388867295,1759441435331,-300.0,0.00016723,2]
[388867296,1759441435352,-300.0,0.00016731,2]
[388867297,1759441435376,-1000.0,0.00016793,2]
[388867298,1759441435398,-3719.96283,0.0001683,2]
[388867299,1759441435420,-151.0,0.0001684,2]
[388867300,1759441435443,-8565.75555911,0.0001684,2]
[388867301,1759441435465,-578.20924309,0.0001684,2]
[388867302,1759441435487,-228.19479065,0.0001684,2]
[388867304,1759441480187,150.0,0.00030136,120]
[388867305,1759441517360,150.0,0.00015288,2]
[388867306,1759441517503,150.0,0.00015288,2]
[388867307,1759441517576,150.0,0.00015288,2]
[388867308,1759441520987,150.0,0.00015288,2]
[388867309,1759441522447,152.73187907,0.00015288,2]
[388867310,1759441522599,150.0,0.00015288,2]
[388867311,1759441524995,150.0,0.00015288,2]
[388867312,1759441536420,150.0,0.00015288,2]
[388867313,1759441536498,150.0,0.00015288,2]
[388867314,1759441537850,150.0,0.00015288,2]
[388867315,1759441539412,150.0,0.00015288,2]
[388867316,1759441560800,200.0,0.0003207,120]
[388867317,1759441636390,300.0,0.000165,6]
[388867318,1759441638740,600.0,0.000166,6]
[388867319,1759441683059,1000.0,0.00016438,2]
[388867320,1759441720703,150.0,0.000124,2]
[388867321,1759441720932,150.0,0.0001358,2]
[388867322,1759441721331,150.0,0.0001477,2]
[388867323,1759441721789,150.0,0.0001595,2]
[388867324,1759441742784,-219.145389,0.00016616,2]
[388867325,1759441772097,1540.0,0.00032071,60]
[388867326,1759441789071,3196.56,0.00030137,120]
[388867327,1759441826724,666.0,0.00016091,3]
[388867333,1759441832314,-900.0,0.000167,6]
[388867334,1759441832326,-300.0,0.00016707,2]
[388867335,1759441832335,-500.0,0.00016714,2]
[388867336,1759441832345,-372.42,0.00016779,2]
[388867337,1759441832355,-1200.0,0.000168,6]
[388867338,1759441832364,-2000.0,0.0001684,2]
[388867339,1759441832374,-160.34139105,0.0001684,2]
[388867340,1759441832383,-1442.19497503,0.0001685,2]
[388867341,1759441832393,-200.0,0.00016863,2]
[388867342,1759441832402,-200.0,0.00016864,2]
[388867343,1759441832412,-1200.0,0.00016878,2]
[388867344,1759441832422,-327.0,0.00016879,2]
[388867345,1759441832432,-300.0,0.00016879,2]
[388867346,1759441832442,-300.0,0.00016879,2]
[388867347,1759441832452,-151.0,0.0001688,2]
[388867348,1759441832461,-4732.25498041,0.0001688,2]
[388867349,1759441832493,-570.84080728,0.0001688,2]
[388867350,1759441832517,-1347.2369513,0.0001688,2]
[388867351,1759441832529,-400.0,0.0001688,2]
[388867427,1759441838295,-1515.42282012,0.0001688,2]
[388867428,1759441838307,-371.68110807,0.0001688,2]
[388867429,1759441838318,-248.71531821,0.0001688,2]
[388867430,1759441838330,-358.0,0.0001688,2]
[388867431,1759441838339,-1069.4,0.00016881,2]
[388867432,1759441838350,-2313.78075359,0.00016881,2]
[388867433,1759441838361,-695.2374862,0.00016881,2]
[388867434,1759441838497,-709.31531073,0.00016881,2]
[388867435,1759441838509,-2011.75644948,0.00016881,2]
[388867436,1759441838520,-888.5519369,0.00016898,2]
[388867437,1759441838531,-1000.0,0.00016898,2]
[388867438,1759441838542,-888.55193684,0.00016898,2]
[388867439,1759441838553,-888.55193684,0.00016898,2]
[388867441,1759441838563,-888.55193684,0.00016899,2]
[388867443,1759441838573,-888.55193684,0.00016899,2]
[388867445,1759441838583,-888.55193684,0.00016899,2]
[388867447,1759441838593,-888.55193684,0.00016899,2]
[388867449,1759441838603,-888.55193684,0.000169,2]
[388867451,1759441838613,-888.55193684,0.000169,2]
[388867453,1759441838623,-1500.0,0.000169,6]
[388867455,1759441838632,-495.45081648,0.000169,2]
[388867457,1759441838643,-152.90568874,0.000169,2]
[388867459,1759441838652,-2500.0,0.000169,2]
[388867461,1759441838662,-196.37655249,0.000169,2]
[388867463,1759441838672,-888.55193684,0.000169,2]
[388867465,1759441838681,-1000.0,0.000169,2]
[388867467,1759441838691,-305.91864271,0.000169,2]
[388867469,1759441838702,-299.99,0.00016922,4]
[388867471,1759441838711,-1189.15,0.00016922,2]
[388867473,1759441838722,-499.99,0.00016922,2]
[388867475,1759441838731,-6733.62,0.00016922,2]
[388867476,1759441838741,-8469.27,0.00016922,2]
[388867479,1759441838762,-1396.37,0.00016922,2]
[388867481,1759441838773,-10670.82,0.00016922,2]
[388867482,1759441838784,-999.99,0.00016922,2]
[388867485,1759441838795,-150.99,0.00016922,2]
[388867486,1759441838806,-1511.07,0.00016922,2]
[388867488,1759441838816,-500.40049056,0.00016932,2]
[388867489,1759441838827,-8882.6885148,0.00016935,2]
[388867490,1759441838837,-774.17460823,0.00016951,2]
[388867491,1759441838847,-500.0,0.00016973,2]
[388867492,1759441838858,-500.0,0.00016973,2]
[388867493,1759441838869,-500.0,0.00016973,2]
[388867494,1759441838879,-500.0,0.00016973,2]
[388867495,1759441838890,-150.0,0.00016986,2]
[388867496,1759441838900,-150.0,0.00016986,2]
[388867497,1759441838910,-150.0,0.00016986,2]
[388867498,1759441838921,-150.0,0.00016986,2]
[388867499,1759441838931,-9211.34798985,0.0001699,2]
[388867500,1759441838941,-248.53153299,0.0001699,2]
[388867501,1759441838951,-151.0,0.0001699,2]
[388867502,1759441838961,-254.57889694,0.0001699,2]
[388867503,1759441838972,-157.28537467,0.0001699,2]
[388867504,1759441838982,-1000.0,0.0001699,2]
[388867505,1759441838992,-322.6107,0.0001699,2]
[388867506,1759441839002,-1000.0,0.0001699,2]
[388867507,1759441839013,-200.0,0.0001699,2]
[388867508,1759441839023,-200.0,0.0001699,2]
[388867509,1759441839033,-200.0,0.0001699,2]
[388867510,1759441839044,-200.0,0.0001699,2]
[388867511,1759441839053,-200.0,0.0001699,2]
[388867512,1759441839062,-500.0,0.0001699,2]
[388867513,1759441839071,-200.0,0.0001699,2]
[388867514,1759441839081,-414.97959689,0.0001699,2]
[388867515,1759441839090,-200.0,0.0001699,2]
[388867516,1759441839101,-200.0,0.0001699,2]
[388867517,1759441839111,-200.0,0.0001699,2]
[388867518,1759441839121,-200.0,0.0001699,2]
[388867519,1759441839131,-325.90879544,0.0001699,2]
[388867520,1759441839140,-500.0,0.0001699,2]
[388867521,1759441839150,-151.0,0.0001699,2]
[388867522,1759441839160,-500.0,0.0001699,2]
[388867523,1759441839170,-500.0,0.0001699,2]
[388867524,1759441839179,-89.04684706,0.0001699,2]
[388867529,1759441841500,-87.03872664,0.0001699,2]
[388867530,1759441841510,-646.65982734,0.0001699,2]
[388867531,1759441841521,-500.0,0.0001699,2]
[388867532,1759441841531,-146.13213917,0.0001699,2]
[388867533,1759441841596,-353.86786083,0.0001699,2]
[388867534,1759441841605,-1314.28,0.0001699,2]
[388867535,1759441841615,-500.0,0.00016997,2]
[388867536,1759441841624,-381.82100269,0.00016997,2]
[388867537,1759441841633,-499.90359191,0.00016997,2]
[388867538,1759441841642,-500.0,0.00016997,2]
[388867539,1759441841651,-500.0,0.00016997,2]
[388867540,1759441841661,-500.0,0.00016997,2]
[388867541,1759441841670,-267.93896657,0.00016997,2]
[388867542,1759441841759,-159.36485171,0.00016997,2]
[388867543,1759441841768,-150.0,0.00016998,2]
[388867544,1759441841778,-150.0,0.00016998,2]
[388867545,1759441841787,-150.0,0.00016998,2]
[388867546,1759441841796,-150.0,0.00016998,2]
[388867547,1759441841806,-150.90482326,0.00016998,2]
[388867548,1759441841816,-150.0,0.00016998,2]
[388867549,1759441841825,-150.0,0.00016998,2]
[388867550,1759441841834,-1891.5661137,0.00016998,2]
[388867551,1759441841844,-43.27736391,0.00016998,2]
[388867561,1759441843390,-106.72263609,0.00016998,2]
[388867562,1759441843400,-150.0,0.00016998,2]
[388867563,1759441843410,-150.0,0.00016998,2]
[388867564,1759441843419,-44.47236391,0.00016998,2]
[388867565,1759441843432,-105.52763609,0.00016998,2]
[388867566,1759441843442,-150.0,0.00016998,2]
[388867567,1759441843451,-199.31186417,0.00016998,2]
[388867568,1759441843463,-300.68813583,0.00016998,2]
[388867569,1759441843472,-239.43530268,0.00016998,2]
[388867570,1759441843483,-30102.29729733,0.00016998,2]
[388867571,1759441843495,-3154.8958515,0.00016998,2]
[388867573,1759441843842,-6855.90067227,0.00016998,2]
[388867574,1759441843854,-31444.35424592,0.00016998,2]
[388867577,1759441843863,-1589.0,0.00016998,2]
[388867580,1759441843872,-500.0,0.00016998,2]
[388867583,1759441843882,-150.0,0.00016998,2]
[388867585,1759441843891,-500.0,0.00016998,2]
[388867587,1759441843900,-614.0,0.00016998,2]
[388867588,1759441843911,-265.22667587,0.00016998,2]
[388867589,1759441843921,-150.60953712,0.00016998,2]
[388867590,1759441843931,-150.0,0.00016998,2]
[388867591,1759441843942,-151.02496615,0.00016998,2]
[388867592,1759441843952,-150.0,0.00016998,2]
[388867593,1759441843961,-150.0,0.00016998,2]
[388867594,1759441843971,-200.0,0.00016998,2]
[388867595,1759441843981,-150.0,0.00016998,2]
[388867596,1759441843991,-150.0,0.00016998,2]
[388867597,1759441844001,-3054.8674981,0.00016999,2]
[388867598,1759441844010,-13311.5617476,0.00016999,2]
[388867599,1759441844020,-653.0,0.00017,2]
[388867600,1759441844030,-33192.87281618,0.00017,2]
[388867601,1759441844040,-33921.64251307,0.00017,2]
[388867602,1759441844095,-19204.07534707,0.00017,2]
[388867603,1759441844182,-5807.20328423,0.00017,2]
[388867604,1759441844194,-4506.0060002,0.00017,2]
[388867605,1759441844317,-3495.02210279,0.00017,2]
[388867606,1759441844329,-560.47152291,0.00017,2]
[388867607,1759441844361,-28021.28672805,0.00017,2]
[388867609,1759441846391,-9346.49771428,0.00017,2]
[388867610,1759441846716,-4159.4818044,0.00017,2]
[388867611,1759441846765,-4422.64758752,0.00017,2]
[388867613,1759441861116,200.0,0.00032071,120]
[388867614,1759441891891,989.81,0.00030136,120]
[388867615,1759441895267,-345.85215537,0.0001666,2]
[388867616,1759441917364,150.0,0.00016091,2]
[388867617,1759441917515,150.0,0.00016091,120]
[388867619,1759441941483,165.23,0.00016091,2]
[388867620,1759441956442,972.0,0.00032071,60]
[388867622,1759442163400,200.0,0.00032071,120]
[388867623,1759442249203,150.0,0.000114,2]
[388867624,1759442249640,150.0,0.0001258,2]
[388867625,1759442250404,150.0,0.0001377,2]
[388867626,1759442251234,150.0,0.0001495,2]
[388867627,1759442251793,150.0,0.0001613,2]
[388867628,1759442333154,150.0,0.00030136,120]
[388867629,1759442363940,480.31,0.00016025,2]
[388867630,1759442396878,200.0,0.00016091,2]
[388867631,1759442444884,632.09,0.00016091,2]
[388867632,1759442445544,-300.0,0.0001666,2]
[388867633,1759442461462,200.0,0.0003207,120]
[388867634,1759442487787,1000.0,0.0003013,120]
[388867635,1759442488778,-257.0,0.0001666,2]
[388867636,1759442489317,-257.0,0.0001666,2]
[388867637,1759442498791,159.98,0.00016042,2]
[388867638,1759442501885,500.0,0.0003013,120]
[388867639,1759442504084,10000.0,0.0003207,60]
[388867641,1759442538854,398.20145,0.0003013,120]
[388867642,1759442544149,948.57,0.00030136,120]
[388867644,1759442585538,510.99,0.00016042,2]
[388867645,1759442706972,174.28577663,0.00015288,2]
[388867646,1759442707033,150.0,0.00015288,2]
[388867647,1759442707121,150.0,0.00015288,2]
[388867648,1759442707262,150.0,0.00016137,2]
[388867649,1759442709378,150.0,0.00015288,2]
[388867650,1759442713879,170.09279145,0.00015288,2]
[388867651,1759442713993,285.26724481,0.00015288,2]
[388867652,1759442719239,150.0,0.00015288,2]
[388867653,1759442719310,150.0,0.00015288,2]
[388867654,1759442721686,150.0,0.00015288,2]
[388867655,1759442722675,200.0,0.00030136,120]
[388867656,1759442728621,150.0,0.00015288,2]
[388867657,1759442728679,150.0,0.00016137,2]
[388867659,1759442761460,200.0,0.0003207,120]
[388867660,1759442779337,150.0,0.000104,2]
[388867661,1759442779506,150.0,0.0001158,2]
[388867662,1759442779668,150.0,0.0001277,2]
[388867663,1759442779870,150.0,0.0001395,2]
[388867664,1759442780048,150.0,0.0001513,2]
[388867665,1759442780315,196.0,0.0001632,2]
[388867666,1759442789215,1600.0,0.00016091,2]
[388867667,1759442793388,200.0,0.00016091,2]
[388867668,1759442812425,150.0,0.00029,120]
[388867669,1759442821416,150.0,0.000295,120]
[388867670,1759442851204,10011.0,0.0003207,60]
[388867672,1759442883220,5023.0,0.0003207,60]
[388867680,1759442900335,300.0,0.000295,120]
[388867682,1759442950845,153.3764535,0.000286,120]
[388867683,1759442989830,500.0,0.0003,120]
[388867684,1759443017967,150.0,0.000301,120]
[388867693,1759443031559,-201.0,0.00016659,2]
[388867694,1759443031568,-300.0,0.00016659,2]
[388867695,1759443031578,-300.0,0.00016659,2]
[388867696,1759443031587,-221.21314585,0.00016659,2]
[388867697,1759443031598,-257.47057724,0.00016659,2]
[388867698,1759443031609,-721.31627691,0.00016659,2]
[388867699,1759443031618,-300.41487226,0.00016659,2]
[388867700,1759443031627,-1409.61959855,0.00016659,2]
[388867701,1759443031639,-590.38040145,0.00016659,2]
[388867703,1759443031648,-252.46,0.00016659,2]
[388867704,1759443031659,-150.0,0.0001666,2]
[388867705,1759443031668,-162.349,0.0001666,2]
[388867706,1759443031677,-1000.0,0.0001666,2]
[388867707,1759443031687,-834.488,0.0001666,2]
[388867708,1759443031698,-150.0,0.0001666,2]
[388867709,1759443031708,-195.0,0.0001666,2]
[388867710,1759443031718,-2500.0,0.00016661,2]
[388867711,1759443031727,-41.97607561,0.0001682,2]
[388867712,1759443031856,-109.97528819,0.0001682,2]
[388867713,1759443031871,-171.77571181,0.0001682,2]
[388867714,1759443031883,-76.9396064,0.0001682,2]
[388867715,1759443031893,-438.21655002,0.0001682,2]
[388867716,1759443031923,-8127.53900909,0.0001682,2]
[388867718,1759443031934,-47.21666699,0.0001683,2]
[388867719,1759443031947,-3672.74617301,0.0001683,2]
[388867720,1759443031957,-510.99,0.00016844,2]
[388867721,1759443031966,-401.08012471,0.00016856,2]
[388867722,1759443031976,-500.0,0.00016874,2]
[388867723,1759443031985,-154.78215579,0.00016874,2]
[388867724,1759443031995,-8882.6885148,0.00016875,2]
[388867725,1759443032005,-1000.0,0.00016898,2]
[388867726,1759443032015,-1000.0,0.000169,2]
[388867727,1759443032024,-424.67212836,0.000169,2]
[388867728,1759443032035,-936.37360036,0.000169,2]
[388867729,1759443032045,-2500.0,0.000169,2]
[388867730,1759443032054,-267.67881238,0.000169,2]
[388867731,1759443032064,-185.23257434,0.000169,2]
[388867732,1759443032073,-9211.34798985,0.0001693,2]
[388867733,1759443032082,-869.80006636,0.00016964,2]
[388867734,1759443032091,-500.0,0.00016973,2]
[388867735,1759443032101,-500.0,0.00016973,2]
[388867736,1759443032110,-500.0,0.00016973,2]
[388867737,1759443032119,-151.0,0.0001698,2]
[388867738,1759443032128,-151.0,0.0001698,2]
[388867739,1759443032137,-322.6107,0.0001698,2]
[388867740,1759443032147,-151.0,0.0001698,2]
[388867741,1759443032156,-151.0,0.0001698,2]
[388867742,1759443032166,-151.0,0.0001698,2]
[388867743,1759443032176,-151.0,0.0001698,2]
[388867744,1759443032185,-151.0,0.0001698,2]
[388867745,1759443032195,-155.2589367,0.0001698,2]
[388867746,1759443032204,-500.0,0.0001698,2]
[388867747,1759443032215,-151.0,0.0001698,2]
[388867748,1759443032225,-646.65982734,0.0001698,2]
[388867749,1759443032234,-231.19756295,0.0001698,2]
[388867753,1759443037479,-268.80243705,0.0001698,2]
[388867754,1759443037489,-151.0,0.0001698,2]
[388867755,1759443037499,-500.0,0.0001698,2]
[388867756,1759443037508,-500.0,0.0001698,2]
[388867757,1759443037518,-151.0,0.0001698,2]
[388867758,1759443037527,-151.0,0.0001698,2]
[388867759,1759443037537,-147.66499763,0.0001698,2]
[388867760,1759443037549,-3.33500237,0.0001698,2]
[388867761,1759443037559,-151.0,0.0001698,2]
[388867762,1759443037568,-151.0,0.0001698,2]
[388867763,1759443037578,-500.0,0.0001698,2]
[388867764,1759443037587,-455.79400481,0.0001698,2]
[388867765,1759443037612,-44.20599519,0.0001698,2]
[388867766,1759443037622,-500.0,0.0001698,2]
[388867767,1759443037631,-500.0,0.0001698,2]
[388867768,1759443037641,-500.0,0.0001698,2]
[388867769,1759443037650,-151.0,0.0001698,2]
[388867770,1759443037660,-500.0,0.0001698,2]
[388867771,1759443037669,-500.0,0.0001698,2]
[388867772,1759443037679,-500.0,0.0001698,2]
[388867773,1759443037688,-61.3188485,0.0001698,2]
[388867774,1759443037737,-438.6811515,0.0001698,2]
[388867775,1759443037747,-500.0,0.0001698,2]
[388867776,1759443037757,-500.0,0.0001698,2]
[388867777,1759443037767,-174.86234885,0.0001698,2]
[388867778,1759443037778,-151.0,0.0001698,2]
[388867779,1759443037788,-151.0,0.0001698,2]
[388867780,1759443037797,-151.0,0.0001698,2]
[388867781,1759443037807,-151.0,0.0001698,2]
[388867783,1759443037817,-151.0,0.0001698,2]
[388867787,1759443037826,-151.0,0.0001698,2]
[388867791,1759443037835,-151.0,0.0001698,2]
[388867793,1759443037844,-151.0,0.0001698,2]
[388867795,1759443037854,-151.0,0.0001698,2]
[388867796,1759443037864,-500.0,0.0001698,2]
[388867797,1759443037876,-48.49649963,0.0001698,2]
[388867798,1759443037888,-102.50350037,0.0001698,2]
[388867799,1759443037897,-370.61981075,0.0001698,2]
[388867800,1759443037908,-226.22263689,0.0001698,2]
[388867801,1759443037918,-500.0,0.0001698,2]
[388867802,1759443037927,-16.44855504,0.0001698,2]
[388867805,1759443039686,-483.55144496,0.0001698,2]
[388867806,1759443039696,-500.0,0.0001698,2]
[388867807,1759443039706,-500.0,0.0001698,2]
[388867808,1759443039716,-500.0,0.0001698,2]
[388867809,1759443039725,-190.74855504,0.0001698,2]
[388867810,1759443039737,-309.25144496,0.0001698,2]
[388867811,1759443039746,-500.0,0.0001698,2]
[388867812,1759443039756,-500.0,0.0001698,2]
[388867813,1759443039765,-500.0,0.0001698,2]
[388867814,1759443039774,-500.0,0.0001698,2]
[388867815,1759443039784,-500.0,0.0001698,2]
[388867816,1759443039794,-1298.77,0.0001698,2]
[388867817,1759443039803,-225.6393807,0.00016983,2]
[388867818,1759443039870,-274.3606193,0.00016983,2]
[388867819,1759443039880,-544.04938066,0.00016985,2]
[388867820,1759443039891,-438.26764595,0.00016985,2]
[388867821,1759443039902,-859.90704966,0.00016985,2]
[388867822,1759443039930,-1488.68355577,0.00016985,2]
[388867826,1759443042678,-6221.26023343,0.00016985,2]
[388867827,1759443042690,-290.75041273,0.00016986,2]
[388867828,1759443042700,-175.34989524,0.00016986,2]
[388867829,1759443042711,-245.93148317,0.00016986,2]
[388867830,1759443042722,-1290.772,0.00016989,2]
[388867831,1759443042732,-152.0928969,0.00016998,2]
[388867832,1759443042742,-150.0,0.00016998,2]
[388867833,1759443042753,-150.0,0.00016998,2]
[388867834,1759443042764,-153.72761504,0.00016998,2]
[388867835,1759443042775,-150.0,0.00016998,2]
[388867836,1759443042786,-500.0,0.00016998,2]
[388867837,1759443042796,-150.0,0.00016998,2]
[388867838,1759443042807,-150.0,0.00016998,2]
[388867839,1759443042816,-3460.6584982,0.00016998,2]
[388867840,1759443042826,-150.0,0.00016998,2]
[388867841,1759443042837,-1614.0,0.00016998,2]
[388867842,1759443042848,-500.0,0.00016998,2]
[388867843,1759443042859,-200.0,0.00016998,2]
[388867844,1759443042877,-769.0,0.00016998,2]
[388867845,1759443042888,-151.83344632,0.00016998,2]
[388867846,1759443042897,-150.0,0.00016998,2]
[388867847,1759443042907,-620.0,0.00016998,2]
[388867848,1759443042916,-150.0,0.00016998,2]
[388867849,1759443042925,-150.0,0.00016998,2]
[388867850,1759443042934,-500.0,0.00016998,2]
[388867851,1759443042943,-200.0,0.00016998,2]
[388867852,1759443042954,-500.0,0.00016998,2]
[388867853,1759443042963,-500.0,0.00016998,2]
[388867854,1759443042972,-150.0,0.00016998,2]
[388867855,1759443042981,-200.0,0.00016998,2]
[388867856,1759443042990,-150.0,0.00016998,2]
[388867857,1759443043000,-150.0,0.00016998,2]
[388867858,1759443043009,-150.0,0.00016998,2]
[388867859,1759443043018,-202.73878866,0.00016998,2]
[388867860,1759443043028,-150.0,0.00016998,2]
[388867861,1759443043037,-3427.4054422,0.00016999,2]
[388867862,1759443043048,-2451.69728811,0.00016999,2]
[388867863,1759443043092,-50.72927019,0.00016999,2]
[388867864,1759443043102,-28899.62260316,0.00016999,2]
[388867869,1759443045543,-313.8242,0.00016999,2]
[388867870,1759443045671,-547.36227033,0.00016999,2]
[388867871,1759443045684,-354.70923108,0.00016999,2]
[388867872,1759443045790,-6182.10233035,0.00016999,2]
[388867873,1759443045802,-666.0,0.00016999,2]
[388867874,1759443045818,-834.77528049,0.00016999,2]
[388867876,1759443045829,-165.71522689,0.00016999,2]
[388867888,1759443046078,-522.0,0.00017,2]
[388867889,1759443046146,-4525.28477311,0.00017,2]
[388867890,1759443046157,-3804.5,0.00017,2]
[388867891,1759443061303,200.0,0.0003207,120]
[388867892,1759443109528,150.0,0.0003,120]
[388867893,1759443138485,150.0,0.000301,120]
[388867894,1759443159200,909.04,0.00030136,120]
[388867895,1759443172555,150.0,0.00029,120]
[388867896,1759443188764,150.0,0.0003002,120]
[388867897,1759443227565,150.0,0.00030136,120]
[388867898,1759443271099,10000.0,0.00029,120]
[388867899,1759443305065,150.0,9.4e-05,2]
[388867900,1759443305499,150.0,0.0001058,2]
[388867901,1759443305934,150.0,0.0001177,2]
[388867902,1759443306382,150.0,0.0001295,2]
[388867903,1759443307140,150.0,0.0001413,2]
[388867904,1759443307775,180.0,0.0001532,2]
[388867905,1759443308097,176.0,0.000165,2]
[388867906,1759443322470,10000.0,0.0003,120]
[388867907,1759443332728,1737.01,0.00016091,2]
[388867909,1759443361424,200.0,0.0003207,120]
[388867910,1759443404977,164.63957416,0.00016559,2]
[388867911,1759443464793,-1200.0,0.00016659,2]
[388867912,1759443464819,-300.0,0.00016659,2]
[388867913,1759443464845,-300.0,0.00016659,2]
[388867914,1759443464870,-288.0,0.00016659,2]
[388867915,1759443464897,-2000.0,0.00016659,2]
[388867916,1759443464923,-2000.0,0.0001666,2]
[388867917,1759443464950,-1636.908,0.0001666,2]
[388867918,1759443464976,-2000.0,0.0001666,2]
[388867919,1759443465001,-1746.431,0.0001666,2]
[388867920,1759443465025,-1528.661,0.00016722,2]
[388867921,1759443469628,250.0,0.00016091,2]
[388867922,1759443637862,1000.0,0.00016438,2]
[388867924,1759443654223,168.0,0.00016395,2]
[388867925,1759443659314,168.0,0.00016405,2]
[388867926,1759443661054,200.0,0.00032136,120]
[388867927,1759443713842,871.17,0.00030136,120]
[388867928,1759443832014,150.0,9.4e-05,2]
[388867929,1759443832442,150.0,0.0001058,2]
[388867930,1759443832867,150.0,0.0001177,2]
[388867931,1759443833278,150.0,0.0001295,2]
[388867932,1759443833730,150.0,0.0001413,2]
[388867933,1759443834152,150.0,0.0001532,2]
[388867934,1759443834758,150.0,0.000165,2]
[388867935,1759443849510,-160.78,0.00016636,2]
[388867936,1759443851495,-216.25719955,0.00016636,2]
[388867937,1759443856967,5250.0,0.0001636,2]
[388867938,1759443858736,-161.78661826,0.00016636,2]
[388867939,1759443858762,-49.442503,0.00016638,2]
[388867941,1759443863016,5250.0,0.00016534,2]
[388867942,1759443905188,-145.557497,0.00016638,2]
[388867943,1759443905217,-44.14618219,0.00016639,2]
[388867944,1759443906750,-152.0,0.00016639,2]
[388867945,1759443911627,-53.85381781,0.00016639,2]
[388867946,1759443911651,-131.71618219,0.0001664,2]
[388867947,1759443914220,150.0,0.00015288,2]
[388867948,1759443914313,150.0,0.00015288,2]
[388867949,1759443914378,150.0,0.00015401,2]
[388867950,1759443914459,150.0,0.00015514,2]
[388867951,1759443914525,150.0,0.00015627,2]
[388867952,1759443915570,150.0,0.00015741,2]
[388867953,1759443915622,150.0,0.00015854,2]
[388867954,1759443915680,150.0,0.00015967,2]
[388867955,1759443916184,150.0,0.0001608,2]
[388867956,1759443916234,150.0,0.00016194,2]
[388867957,1759443916285,150.0,0.00016307,2]
[388867958,1759443916350,150.0,0.0001642,2]
[388867959,1759443916384,-18.28381781,0.0001664,2]
[388867960,1759443916410,-461.71618219,0.0001664,2]
[388867961,1759443916479,150.0,0.00016533,2]
[388867962,1759443916701,150.0,0.00015288,2]
[388867963,1759443916774,150.0,0.0001553,2]
[388867964,1759443916926,150.0,0.00015773,2]
[388867965,1759443916994,150.0,0.00016016,2]
[388867966,1759443917054,150.0,0.00016258,2]
[388867967,1759443917110,150.0,0.00016501,2]
[388867968,1759443917233,150.0,0.00015288,2]
[388867969,1759443917277,150.0,0.00015409,2]
[388867970,1759443917338,150.0,0.0001553,2]
[388867971,1759443917384,150.0,0.00015652,2]
[388867972,1759443917526,150.0,0.00015773,2]
[388867973,1759443917578,150.0,0.00015894,2]
[388867974,1759443917631,150.0,0.00016016,2]
[388867975,1759443917677,150.0,0.00016137,2]
[388867976,1759443917721,150.0,0.00016258,2]
[388867977,1759443917788,150.0,0.0001638,2]
[388867978,1759443917834,150.0,0.00016501,2]
[388867979,1759443918620,-150.0,0.00016622,2]
[388867980,1759443918645,-2.0,0.0001664,2]
[388867981,1759443920843,150.0,0.00015288,2]
[388867982,1759443920920,150.0,0.000155,2]
[388867983,1759443920959,150.0,0.00015712,2]